bitfinex-derivatives/quotes_ETHF0:USTF0_20241207
["timestamp","ask_amount","ask_price","bid_price","bid_amount"]
[1733582784870,3.2078,4011.0,4010.3,3.2078]
[1733582785171,0.3913,4010.9,4010.3,3.2078]
[1733582785373,0.17436,4010.4,4009.7,1.94453179]
[1733582785579,0.3886,4010.8,4009.7,1.94453179]
[1733582785580,3.9967,4010.3,4009.7,1.94453179]
[1733582785872,0.17438,4010.0,4009.7,1.94453179]
[1733582786065,0.17437,4010.1,4009.7,1.94453179]
[1733582786267,0.394,4010.0,4009.7,1.94453179]
[1733582786769,0.17439,4009.6,4009.5,0.389]
[1733582787068,0.1744,4009.4,4009.3,3.2078]
[1733582787276,0.1744,4009.5,4009.3,3.2078]
[1733582787564,0.1744,4009.5,4009.2,1.94453179]
[1733582787769,0.1744,4009.4,4009.2,1.94453179]
[1733582787963,0.17441,4009.3,4009.2,1.94453179]
[1733582788165,0.17441,4009.3,4008.9,0.3956]
[1733582788666,0.1744,4009.5,4008.9,0.3956]
[1733582788975,0.1744,4009.5,4008.2,1.94453179]
[1733582788976,3.2078,4009.2,4008.2,1.94453179]
[1733582789273,0.17445,4008.4,4008.2,0.8247]
[1733582789469,0.17445,4008.4,4008.1,3.2078]
[1733582789666,0.3972,4008.6,4008.1,3.2078]
[1733582789865,0.3972,4008.6,4007.8,1.94453179]
[1733582789866,0.3945,4008.3,4007.8,1.94453179]
[1733582790167,0.17446,4008.1,4007.8,1.94453179]
[1733582790471,3.2078,4008.7,4008.3,0.17445]
[1733582790671,3.2078,4008.7,4008.5,0.17444]
[1733582790865,3.2078,4008.7,4008.4,0.8247]
[1733582791060,3.2078,4008.7,4008.6,0.17444]
[1733582791265,0.69,4008.8,4008.6,0.17444]
[1733582791471,0.69,4008.8,4008.4,0.8247]
[1733582791769,0.3945,4009.2,4008.4,0.8247]
[1733582792071,0.56891,4009.2,4008.8,0.17443]
[1733582792569,1.94453179,4009.1,4008.0,0.17446]
[1733582792872,0.17444,4008.5,4008.0,0.58066]
[1733582793063,3.2078,4008.9,4008.1,1.94453179]
[1733582793260,3.2078,4008.9,4008.1,5.54803179]
[1733582793465,3.2078,4008.9,4008.2,0.4143]
[1733582793668,3.2078,4008.9,4008.8,0.17443]
[1733582793868,0.3945,4009.2,4008.5,1.94453179]
[1733582793869,0.3945,4009.2,4008.6,3.2078]
[1733582794067,0.17442,4009.1,4008.7,0.17443]
[1733582794268,0.3945,4009.2,4008.6,3.78844]
[1733582794569,0.3945,4009.2,4008.6,3.614]
[1733582794570,0.17443,4008.8,4008.6,3.614]
[1733582794875,0.55112,4009.1,4008.6,3.614]
[1733582795177,0.3767,4009.1,4008.6,3.614]
[1733582795672,0.3767,4009.1,4008.8,0.17442]
[1733582796173,0.3767,4009.1,4008.6,3.614]
[1733582796472,3.8978,4009.6,4008.6,3.614]
[1733582796667,4.0722,4009.6,4008.6,3.614]
[1733582796971,3.2078,4009.6,4008.6,3.614]
[1733582797173,3.2078,4009.6,4009.2,0.17441]
[1733582797174,3.3822,4009.6,4009.2,0.17441]
[1733582797396,0.1744,4009.6,4009.3,0.3883]
[1733582797577,0.17439,4009.7,4009.3,0.5627]
[1733582797876,0.7827,4009.8,4009.3,0.3883]
[1733582798096,0.7827,4009.8,4008.9,0.17442]
[1733582798097,3.2078,4009.7,4008.9,0.17442]
[1733582798278,3.2078,4009.7,4008.8,0.17443]
[1733582798279,0.17441,4009.3,4008.8,0.17443]
[1733582798469,3.2078,4009.7,4008.7,0.4045]
[1733582798778,0.17443,4008.9,4008.7,0.4045]
[1733582798976,0.3884,4008.8,4008.7,0.4045]
[1733582799170,0.3884,4008.8,4008.7,0.57893]
[1733582799672,0.3971,4009.2,4008.8,0.17442]
[1733582799865,0.7855,4009.2,4008.8,0.17442]
[1733582800068,0.95991,4009.2,4008.8,0.17442]
[1733582800870,0.17442,4009.1,4008.7,0.57893]
[1733582801072,0.7855,4009.2,4008.7,0.4045]
[1733582801468,0.7855,4009.2,4008.8,0.17443]
[1733582801469,0.95991,4009.2,4008.8,0.17443]
[1733582801675,0.7855,4009.2,4008.7,0.4045]
[1733582801975,0.7855,4009.2,4008.6,3.2078]
[1733582802171,1.1643,4009.2,4008.6,3.38224]
[1733582802384,0.17445,4008.4,4008.3,0.4102]
[1733582802673,0.43605,4009.1,4007.8,0.17447]
[1733582802674,3.2078,4008.5,4007.8,0.17447]
[1733582802975,3.2078,4008.5,4007.8,0.58467]
[1733582802976,0.17446,4008.2,4007.8,0.58467]
[1733582803274,0.7908,4008.3,4007.8,0.58467]
[1733582803476,0.17446,4008.1,4007.8,0.58467]
[1733582803674,0.7908,4008.3,4007.8,0.4102]
[1733582803675,0.17447,4007.9,4007.8,0.4102]
[1733582803973,0.17447,4007.9,4007.6,3.5819]
[1733582804175,1.5028,4008.3,4007.6,3.2078]
[1733582804373,0.3796,4008.2,4007.6,3.2078]
[1733582804579,0.17448,4007.7,4007.6,3.2078]
[1733582805471,0.17448,4007.7,4007.3,0.58469]
[1733582805671,0.17448,4007.6,4007.3,0.4102]
[1733582806279,0.17449,4007.5,4007.3,0.4102]
[1733582806579,0.17449,4007.5,4007.0,3.2078]
[1733582806580,0.17448,4007.6,4007.0,3.2078]
[1733582806775,0.1745,4007.2,4007.0,3.2078]
[1733582806973,0.1745,4007.2,4006.8,0.17451]
[1733582807278,0.1745,4007.3,4006.7,0.17452]
[1733582807473,0.7928,4007.4,4006.8,3.2078]
[1733582807674,0.7928,4007.4,4007.1,0.1745]
[1733582807868,0.17449,4007.5,4006.9,1.94453179]
[1733582807869,0.712,4007.5,4006.9,1.94453179]
[1733582808075,0.712,4007.5,4007.3,0.17449]
[1733582808282,0.88649,4007.5,4006.9,1.94453179]
[1733582808469,0.712,4007.5,4007.2,0.1745]
[1733582808673,0.3988,4007.8,4007.1,0.1745]
[1733582808881,0.17449,4007.5,4007.1,0.1745]
[1733582809677,0.712,4007.7,4006.8,3.2078]
[1733582809881,0.712,4007.7,4006.9,0.17451]
[1733582809882,0.1745,4007.3,4006.9,0.17451]
[1733582810176,0.712,4007.7,4006.8,3.2078]
[1733582810383,0.17451,4007.0,4006.8,3.2078]
[1733582810778,3.2078,4007.1,4006.6,0.7655]
[1733582810977,0.3978,4006.9,4006.6,0.7655]
[1733582811277,0.3978,4006.9,4006.2,3.2078]
[1733582811474,0.3978,4006.9,4005.8,0.7668]
[1733582811475,3.2078,4006.6,4005.8,0.7668]
[1733582811677,0.17453,4006.5,4006.0,0.17455]
[1733582811879,0.17452,4006.7,4005.9,0.17455]
[1733582812077,0.58782,4006.8,4006.4,0.17453]
[1733582812277,0.17452,4006.7,4006.3,0.17453]
[1733582812477,0.17452,4006.6,4006.2,0.17454]
[1733582812677,0.17453,4006.6,4006.2,0.17454]
[1733582813074,0.4133,4006.8,4006.1,0.17454]
[1733582813275,3.2078,4006.6,4005.8,0.7668]
[1733582813472,0.4133,4006.8,4006.1,0.17454]
[1733582813876,0.4133,4006.8,4006.6,0.17452]
[1733582814082,0.712,4007.0,4006.9,0.17451]
[1733582814381,0.712,4007.0,4006.7,0.7766]
[1733582814778,0.17453,4006.6,4006.3,0.3877]
[1733582814978,0.712,4007.0,4006.3,0.3877]
[1733582815179,0.3945,4006.9,4006.2,3.2078]
[1733582815382,0.17453,4006.4,4006.2,3.2078]
[1733582815581,0.3945,4006.9,4006.2,3.2078]
[1733582815774,0.17453,4006.5,4005.9,0.7766]
[1733582815978,0.17453,4006.5,4006.1,0.17454]
[1733582816176,0.17454,4006.3,4006.0,0.17455]
[1733582816383,0.3956,4006.4,4005.9,0.7766]
[1733582816584,0.3956,4006.4,4006.1,0.17454]
[1733582816781,0.57013,4006.4,4006.1,0.17454]
[1733582816979,0.3956,4006.4,4005.9,0.7766]
[1733582817183,0.3956,4006.4,4006.3,0.17454]
[1733582817383,3.2078,4006.7,4005.9,0.7766]
[1733582817384,0.712,4006.6,4006.4,0.17453]
[1733582817688,0.88653,4006.6,4006.2,0.17454]
[1733582817881,0.712,4006.6,4005.9,0.7766]
[1733582818184,0.17452,4006.6,4006.0,0.17455]
[1733582818490,3.2078,4006.7,4005.9,0.7766]
[1733582818491,3.9198,4006.7,4005.9,0.7766]
[1733582818784,3.9198,4006.7,4006.5,0.17453]
[1733582818978,3.9198,4006.7,4005.9,0.7766]
[1733582818979,3.9198,4006.7,4006.0,0.43638]
[1733582819181,3.9198,4006.7,4006.6,0.17452]
[1733582819483,3.2078,4006.7,4006.6,0.17452]
[1733582820488,3.2078,4006.7,4006.0,0.43638]
[1733582820489,3.2078,4006.7,4006.0,3.64418]
[1733582820680,3.2078,4006.7,4006.0,3.2078]
[1733582821086,0.17453,4006.6,4006.1,0.17455]
[1733582821288,0.17453,4006.5,4006.2,0.17454]
[1733582821492,0.17453,4006.4,4006.1,0.17454]
[1733582821785,0.17453,4006.6,4006.2,0.17454]
[1733582822091,0.17453,4006.5,4006.2,0.17454]
[1733582822982,0.17454,4006.4,4006.0,0.17455]
[1733582823187,3.2078,4006.7,4005.9,0.7766]
[1733582823389,0.3889,4006.3,4006.1,0.17454]
[1733582823792,0.3889,4006.3,4006.2,0.17454]
[1733582824188,0.3889,4006.3,4005.9,0.7766]
[1733582824987,0.3889,4006.3,4005.7,0.3936]
[1733582824988,1.1009,4006.3,4005.7,0.17456]
[1733582825183,0.17455,4006.0,4005.7,0.17456]
[1733582825590,0.17455,4006.0,4005.5,3.5871]
[1733582825591,0.17456,4005.8,4005.5,3.5871]
[1733582825790,1.1009,4006.3,4005.6,0.43643]
[1733582825994,0.712,4006.3,4006.2,0.17454]
[1733582826187,0.712,4006.3,4005.5,3.5871]
[1733582826387,0.712,4006.3,4006.2,0.17454]
[1733582826589,0.712,4006.3,4005.6,0.43642]
[1733582826796,0.712,4006.3,4006.2,0.17454]
[1733582827294,0.712,4006.3,4006.1,0.17454]
[1733582827597,0.712,4006.3,4005.9,0.17455]
[1733582827598,0.17454,4006.2,4005.9,0.17455]
[1733582827890,0.17455,4006.1,4005.8,0.17456]
[1733582828088,1.0988,4006.3,4005.5,3.5871]
[1733582828285,0.3807,4006.0,4005.5,0.3793]
[1733582828801,3.2078,4006.6,4005.5,3.5871]
[1733582829087,0.712,4006.5,4005.7,0.43641]
[1733582829288,0.88653,4006.5,4006.2,0.17454]
[1733582829493,0.17453,4006.4,4006.0,0.17455]
[1733582829687,0.17455,4006.0,4005.7,0.17456]
[1733582829888,0.7678,4006.4,4005.5,0.3793]
[1733582829889,0.17455,4006.1,4005.6,0.17457]
[1733582830192,0.7678,4006.4,4005.9,0.17455]
[1733582830392,0.7678,4006.4,4005.5,0.3793]
[1733582830789,0.7678,4006.4,4005.7,0.17456]
[1733582830790,0.17454,4006.3,4005.7,0.17456]
[1733582831107,0.7678,4006.4,4005.7,0.17456]
[1733582831108,0.17455,4006.0,4005.7,0.17456]
[1733582831395,0.17455,4006.1,4005.8,0.17456]
[1733582831587,0.17455,4006.1,4005.5,0.3793]
[1733582831986,0.17455,4006.1,4005.8,0.17456]
[1733582832184,0.17455,4006.1,4005.5,0.3793]
[1733582832390,0.17454,4006.3,4005.9,0.17455]
[1733582832596,0.7678,4006.4,4006.0,0.17455]
[1733582832792,0.7678,4006.4,4005.5,0.3793]
[1733582832793,0.17454,4006.2,4005.9,0.17455]
[1733582833587,0.7678,4006.4,4005.5,3.5871]
[1733582833794,0.17454,4006.3,4006.1,0.17455]
[1733582833991,0.7678,4006.4,4005.5,3.5871]
[1733582834193,0.94234,4006.4,4005.5,3.5871]
[1733582834393,0.17454,4006.2,4005.9,0.17455]
[1733582834592,0.17454,4006.2,4005.6,0.17457]
[1733582834793,0.7678,4006.4,4005.5,3.5871]
[1733582834999,0.17457,4005.6,4005.5,0.3793]
[1733582835197,0.17457,4005.6,4005.4,0.17458]
[1733582835599,0.7833,4005.7,4005.2,0.7531]
[1733582835805,0.17457,4005.5,4005.3,0.17458]
[1733582836000,0.17458,4005.4,4005.2,0.92768]
[1733582836205,0.17458,4005.3,4005.2,0.3741]
[1733582836501,3.2078,4005.4,4005.2,0.3741]
[1733582836502,3.38238,4005.4,4005.2,0.3741]
[1733582837198,0.17458,4005.3,4005.1,0.4057]
[1733582837501,0.17459,4005.2,4004.9,0.17459]
[1733582837695,3.2078,4005.4,4004.7,0.7628]
[1733582838304,3.2078,4005.4,4005.2,0.17458]
[1733582838499,0.17458,4005.3,4005.0,0.17459]
[1733582838705,0.17458,4005.3,4004.7,0.7628]
[1733582838706,3.2078,4005.4,4005.2,0.17458]
[1733582838898,3.9278,4005.4,4005.3,0.17458]
[1733582839098,0.17458,4005.3,4005.0,0.17459]
[1733582839298,3.9278,4005.4,4004.7,0.7628]
[1733582839603,3.9278,4005.4,4004.7,0.5503]
[1733582839796,0.1746,4005.0,4004.7,0.5503]
[1733582840197,3.9278,4005.4,4004.7,0.3757]
[1733582840398,0.1746,4004.9,4004.7,0.3757]
[1733582840797,0.1746,4004.9,4003.7,1.35188986]
[1733582840798,0.17462,4004.5,4003.8,3.2078]
[1733582841098,0.17462,4004.5,4004.1,0.17463]
[1733582841099,0.89462,4004.5,4004.1,0.17463]
[1733582841305,0.72,4004.5,4004.0,0.3798]
[1733582841501,0.72,4004.5,4004.1,0.17463]
[1733582841997,0.72,4004.5,4004.2,0.17462]
[1733582842193,0.72,4004.5,4004.1,0.17463]
[1733582842399,0.89462,4004.5,4004.1,0.17463]
[1733582842802,0.72,4004.5,4004.1,0.17463]
[1733582843098,0.89462,4004.5,4004.1,0.17463]
[1733582843502,3.2078,4004.3,4004.0,0.3798]
[1733582843697,3.2078,4004.3,4004.1,0.17463]
[1733582843899,3.2078,4004.3,4004.2,0.17463]
[1733582844094,0.72,4004.5,4004.2,0.17463]
[1733582844307,0.89462,4004.5,4004.1,0.17463]
[1733582844500,0.72,4004.5,4004.0,0.3798]
[1733582844700,0.72,4004.5,4004.2,0.17463]
[1733582845003,0.72,4004.5,4004.0,0.3798]
[1733582845207,0.72,4004.5,4004.2,0.17463]
[1733582845609,0.72,4004.5,4004.4,0.17462]
[1733582846105,0.72,4004.5,4004.3,0.17462]
[1733582846406,0.72,4004.5,4004.2,0.17462]
[1733582846605,0.72,4004.5,4004.0,0.55443]
[1733582846606,0.17462,4004.4,4004.0,0.55443]
[1733582846802,3.2078,4004.3,4004.0,0.55443]
[1733582847007,3.38243,4004.3,4004.0,0.3798]
[1733582847897,3.2078,4004.3,4004.0,0.3798]
[1733582848114,3.2078,4004.3,4004.1,0.17463]
[1733582848403,3.2078,4004.3,4004.0,0.55444]
[1733582848606,3.2078,4004.3,4003.8,3.2078]
[1733582848800,3.38242,4004.3,4003.9,0.17464]
[1733582849304,0.17463,4004.2,4003.8,3.38244]
[1733582849515,3.2078,4004.3,4003.8,3.2078]
[1733582849711,0.72,4004.2,4003.9,0.56954]
[1733582849925,0.72,4004.2,4003.9,0.3949]
[1733582850208,0.72,4004.2,4003.8,3.2078]
[1733582850209,0.17463,4004.1,4003.8,3.2078]
[1733582850508,0.72,4004.2,4003.8,3.2078]
[1733582850712,0.17463,4004.1,4003.8,3.2078]
[1733582850910,0.17463,4004.1,4003.6,0.17465]
[1733582851118,0.72,4004.2,4003.5,0.8126]
[1733582851413,2.74743179,4004.0,4003.5,0.8126]
[1733582851609,3.2078,4003.8,4003.6,0.17465]
[1733582852308,3.2078,4003.8,4003.5,0.8126]
[1733582852516,3.2078,4003.8,4003.6,0.17465]
[1733582852813,3.38245,4003.8,4003.5,0.4107]
[1733582853010,1.94453179,4003.6,4003.5,0.4107]
[1733582853211,2.83918179,4003.6,4003.5,0.4107]
[1733582853906,2.66453179,4003.6,4003.5,0.4107]
[1733582854111,2.83918179,4003.6,4003.5,0.4107]
[1733582854313,2.83919179,4003.6,4003.4,0.3937]
[1733582854611,2.66453179,4003.6,4003.2,0.3836]
[1733582854818,0.17466,4003.4,4003.2,0.3836]
[1733582855012,2.66453179,4003.6,4003.2,0.3836]
[1733582855410,3.2078,4003.3,4002.8,0.3836]
[1733582855919,0.17467,4003.4,4003.1,0.17468]
[1733582856714,0.17467,4003.4,4003.1,0.17467]
[1733582856921,0.17466,4003.5,4002.9,0.17468]
[1733582857115,0.17466,4003.4,4003.1,0.17467]
[1733582857617,0.17466,4003.5,4003.2,0.17467]
[1733582857812,2.66453179,4003.6,4002.8,0.3836]
[1733582858118,2.66453179,4003.6,4002.9,0.43672]
[1733582858318,2.66453179,4003.6,4003.4,0.17466]
[1733582858822,2.66453179,4003.6,4002.7,0.8178]
[1733582859115,3.2078,4003.3,4002.7,0.8178]
[1733582859317,2.5852,4003.3,4002.7,0.8178]
[1733582859515,0.3968,4004.0,4003.2,3.2078]
[1733582859716,3.2078,4004.5,4004.4,0.17462]
[1733582860022,3.38242,4004.5,4004.3,0.17462]
[1733582860215,3.38242,4004.5,4004.0,0.17464]
[1733582860216,0.17463,4004.3,4004.0,0.17464]
[1733582860416,0.3885,4004.4,4004.0,0.3886]
[1733582860616,0.3885,4004.4,4003.9,0.3845]
[1733582860617,0.17464,4004.0,4003.9,0.3845]
[1733582861323,0.721,4004.2,4003.9,0.3845]
[1733582861720,0.17463,4004.1,4003.9,0.3845]
[1733582862117,0.17463,4004.1,4003.7,0.17465]
[1733582862425,0.17463,4004.1,4003.1,0.3886]
[1733582862426,0.721,4004.2,4003.2,0.4052]
[1733582862718,0.89563,4004.2,4003.9,0.17464]
[1733582862922,0.17463,4004.1,4003.3,0.4051]
[1733582863224,0.721,4004.0,4003.8,0.17464]
[1733582863810,0.721,4004.0,4003.3,0.4051]
[1733582863811,3.9288,4004.0,4003.3,0.4051]
[1733582864012,0.17465,4003.8,4003.5,0.17466]
[1733582864218,0.17464,4003.9,4003.6,0.17465]
[1733582864417,3.9288,4004.0,4003.3,0.4051]
[1733582864418,4.3099,4004.0,4003.3,0.4051]
[1733582864613,4.3099,4004.0,4003.6,0.17465]
[1733582864614,0.17464,4003.9,4003.6,0.17465]
[1733582864810,0.57375,4003.8,4003.5,0.17466]
[1733582865318,0.17466,4003.4,4003.2,0.4052]
[1733582865524,0.17466,4003.4,4003.1,0.56327]
[1733582865726,0.3803,4003.7,4003.1,0.3886]
[1733582865727,0.17467,4003.3,4003.1,0.3886]
[1733582865916,0.716,4003.3,4003.1,0.3886]
[1733582866219,0.4079,4003.2,4003.1,0.56328]
[1733582867316,0.4079,4003.2,4003.0,0.17468]
[1733582867637,0.4079,4003.2,4002.7,0.4095]
[1733582867922,0.4079,4003.2,4003.1,0.17468]
[1733582868119,0.4079,4003.2,4003.0,0.17468]
[1733582868314,0.4079,4003.2,4002.9,0.17468]
[1733582868518,0.4079,4003.2,4002.7,0.58419]
[1733582868722,0.17469,4002.8,4002.7,0.4095]
[1733582868927,0.17469,4002.9,4002.6,0.7805]
[1733582869218,0.17469,4002.8,4002.6,0.7805]
[1733582869422,0.17469,4002.8,4002.5,3.2078]
[1733582869726,0.717,4002.7,4002.5,3.2078]
[1733582870122,0.3814,4002.6,4002.1,0.17472]
[1733582870327,0.17471,4002.4,4002.1,0.17472]
[1733582870524,0.3814,4002.6,4002.0,0.7864]
[1733582870720,0.3814,4002.6,4002.1,0.17472]
[1733582870930,0.17471,4002.3,4002.0,0.7864]
[1733582871425,0.3814,4002.6,4001.9,3.2078]
[1733582871426,0.17472,4002.1,4001.9,3.2078]
[1733582871626,0.717,4002.0,4001.9,3.2078]
[1733582871819,1.1098,4002.0,4001.9,3.2078]
[1733582872127,4.3176,4002.0,4001.3,1.1423]
[1733582872319,0.17473,4001.8,4001.3,1.31705]
[1733582872627,0.3926,4001.9,4001.3,1.31705]
[1733582872628,0.3926,4001.9,4001.3,0.56685]
[1733582872818,0.17474,4001.7,4001.2,0.17476]
[1733582873022,0.17474,4001.7,4001.1,3.2078]
[1733582873023,0.17474,4001.6,4001.1,3.2078]
[1733582873222,0.17474,4001.7,4001.1,3.2078]
[1733582873528,0.17474,4001.7,4001.2,0.17476]
[1733582873824,1.94453179,4001.8,4001.1,3.2078]
[1733582874229,0.3926,4001.9,4001.2,0.43691]
[1733582874437,0.717,4001.7,4001.6,0.17474]
[1733582874923,0.717,4001.8,4001.6,3.2078]
[1733582875122,0.717,4001.8,4001.7,0.17474]
[1733582875526,0.17474,4001.6,4001.5,0.0130022]
[1733582876019,5.17474,4001.6,4001.5,0.0130022]
[1733582876221,5.0,4001.6,4000.4,0.8117]
[1733582876423,3.2078,4001.1,4000.4,0.8117]
[1733582876627,1.4912,4001.0,4000.5,0.17479]
[1733582876830,1.4912,4001.0,4000.7,0.17478]
[1733582877025,1.4912,4001.0,4000.6,0.17478]
[1733582877425,1.4912,4001.0,4000.4,0.3976]
[1733582877741,0.17478,4000.8,4000.4,0.3976]
[1733582878122,1.94453179,4000.9,4000.4,0.3976]
[1733582878427,1.94453179,4000.9,4000.1,0.4033]
[1733582878629,0.17478,4000.8,4000.3,0.17479]
[1733582879031,2.11930179,4000.9,4000.4,0.17479]
[1733582879234,2.11930179,4000.9,4000.1,0.7832]
[1733582879529,0.17478,4000.8,4000.1,0.7832]
[1733582880033,2.11931179,4000.9,4000.4,0.17479]
[1733582880227,0.17478,4000.8,4000.2,0.1748]
[1733582880428,0.3837,4000.8,4000.1,0.3799]
[1733582880734,0.1748,4000.3,4000.0,3.2078]
[1733582880936,0.412,4000.2,4000.0,3.2078]
[1733582881429,0.4368,4002.2,4001.0,0.17477]
[1733582881631,0.412,4001.5,4001.0,0.17477]
[1733582881832,0.717,4001.2,4000.9,3.2078]
[1733582882135,0.717,4001.2,4001.1,0.17476]
[1733582882536,0.412,4001.5,4001.4,0.17475]
[1733582882934,0.412,4001.5,4001.0,0.7995]
[1733582882935,3.2078,4001.8,4001.7,0.17474]
[1733582883147,3.9248,4001.8,4001.7,0.17474]
[1733582883329,0.717,4001.8,4001.7,0.17474]
[1733582884029,2.92405179,4002.2,4001.8,0.17473]
[1733582884223,0.717,4002.1,4001.8,0.17473]
[1733582884432,2.74933179,4002.2,4001.2,0.4369]
[1733582884625,3.2078,4002.4,4002.3,0.17471]
[1733582884936,3.9248,4002.4,4002.3,0.17471]
[1733582885337,3.2078,4002.4,4002.3,0.17471]
[1733582885634,3.2078,4003.4,4002.1,5.15233179]
[1733582885842,0.717,4003.3,4002.2,0.4068]
[1733582886039,0.717,4003.3,4003.2,0.17467]
[1733582886237,2.32613179,4003.8,4002.8,0.7926]
[1733582886438,3.2078,4004.0,4003.2,3.2078]
[1733582886739,0.717,4003.8,4003.7,0.17465]
[1733582886943,8.76536179,4004.2,4003.8,0.17464]
[1733582887233,0.717,4004.1,4003.3,0.61135]
[1733582887432,0.717,4004.1,4004.0,0.17464]
[1733582887628,0.717,4004.1,4003.3,0.83028]
[1733582887835,0.717,4004.1,4004.0,0.17464]
[1733582888236,0.717,4004.3,4003.4,0.43666]
[1733582888437,0.717,4004.3,4004.2,0.17463]
[1733582888640,2.32053179,4004.6,4004.3,0.17462]
[1733582888836,2.32053179,4004.6,4003.7,3.2078]
[1733582888837,0.717,4004.3,4004.2,0.17463]
[1733582889542,0.717,4004.3,4003.7,3.2078]
[1733582889543,0.17463,4004.2,4003.7,0.17465]
[1733582889835,0.717,4004.3,4003.3,0.3936]
[1733582889836,3.2078,4004.1,4003.3,0.3936]
[1733582890139,0.717,4004.3,4003.4,1.94453179]
[1733582890437,3.2078,4004.6,4003.4,1.94453179]
[1733582890438,3.2078,4004.6,4003.6,3.2078]
[1733582890637,3.9248,4004.6,4004.5,0.17461]
[1733582891041,3.9248,4004.6,4003.6,3.2078]
[1733582891237,3.2078,4004.6,4003.6,3.2078]
[1733582891440,3.2078,4004.6,4003.8,0.17464]
[1733582891441,0.17463,4004.3,4003.8,0.17464]
[1733582891745,0.717,4004.5,4003.6,3.2078]
[1733582892041,0.717,4004.5,4004.3,0.17462]
[1733582892242,0.717,4004.5,4003.6,3.2078]
[1733582892637,3.2078,4004.6,4004.5,0.17461]
[1733582893040,2.11912179,4005.1,4004.1,3.2078]
[1733582893231,0.717,4005.0,4004.6,3.2078]
[1733582893436,0.717,4005.0,4004.7,0.1746]
[1733582893635,0.717,4005.0,4004.6,3.2078]
[1733582893836,0.717,4004.9,4004.6,3.2078]
[1733582894038,3.2078,4005.2,4004.6,3.2078]
[1733582894252,0.722,4005.1,4004.6,3.2078]
[1733582894438,0.722,4005.1,4005.0,0.17459]
[1733582894942,0.722,4005.3,4004.6,3.2078]
[1733582895341,0.89658,4005.3,4004.8,0.1746]
[1733582895942,0.89658,4005.3,4004.9,0.1746]
[1733582896151,0.722,4005.3,4004.6,3.2078]
[1733582896350,0.722,4005.3,4005.0,0.17459]
[1733582896659,0.722,4005.3,4004.6,3.2078]
[1733582897541,2.34963179,4005.5,4004.6,3.38241]
[1733582897542,0.17459,4005.1,4004.6,3.38241]
[1733582897740,0.722,4005.0,4004.6,3.2078]
[1733582897941,0.722,4005.0,4004.7,0.1746]
[1733582898347,0.722,4005.0,4004.6,3.2078]
[1733582898542,0.1746,4004.9,4004.6,3.2078]
[1733582898943,0.8966,4005.0,4004.6,3.2078]
[1733582899842,0.722,4005.0,4004.6,3.2078]
[1733582900048,0.17461,4004.7,4004.6,3.2078]
[1733582900249,0.1746,4004.9,4004.6,3.2078]
[1733582900556,0.722,4005.0,4004.6,3.2078]
[1733582901248,0.1746,4004.8,4004.6,3.2078]
[1733582902054,0.722,4005.0,4004.6,3.2078]
[1733582902449,0.1746,4004.9,4004.6,3.2078]
[1733582902655,0.89659,4005.0,4004.6,3.38241]
[1733582902851,0.89659,4005.0,4004.7,0.17461]
[1733582902852,0.722,4005.0,4004.7,0.17461]
[1733582903050,3.2078,4005.2,4004.6,3.2078]
[1733582903051,0.722,4004.9,4004.6,3.2078]
[1733582903250,0.722,4004.9,4004.7,0.1746]
[1733582903751,0.17461,4004.8,4004.6,3.2078]
[1733582903946,0.1746,4004.8,4004.6,3.2078]
[1733582904152,0.722,4004.9,4004.6,3.2078]
[1733582904651,0.1746,4004.8,4004.6,3.2078]
[1733582905157,0.722,4004.9,4004.6,3.2078]
[1733582905158,0.17461,4004.7,4004.6,3.2078]
[1733582905353,0.722,4004.9,4004.2,0.3743]
[1733582905657,0.722,4004.9,4004.1,3.38243]
[1733582905658,0.722,4004.9,4004.1,3.2078]
[1733582905846,0.722,4004.8,4003.6,3.2078]
[1733582906052,0.89661,4004.7,4003.8,0.17465]
[1733582906254,0.722,4004.7,4004.2,0.17462]
[1733582906450,0.17461,4004.6,4004.2,0.17463]
[1733582906759,0.722,4004.7,4003.7,0.3948]
[1733582907059,0.17462,4004.5,4004.1,0.17463]
[1733582907247,0.722,4004.7,4004.0,0.17464]
[1733582907248,0.17462,4004.4,4004.0,0.17464]
[1733582907653,0.17462,4004.4,4003.7,0.3948]
[1733582907851,0.17462,4004.4,4004.0,0.17464]
[1733582908054,3.2078,4004.5,4003.7,0.3948]
[1733582908259,3.2078,4004.5,4003.7,0.56945]
[1733582908260,0.17463,4004.1,4003.7,0.56945]
[1733582908458,0.17464,4004.0,4003.7,0.3948]
[1733582909563,0.17465,4003.7,4003.6,3.2078]
[1733582910660,5.94773179,4004.0,4003.0,0.3828]
[1733582910861,5.94773179,4004.0,4003.1,0.17467]
[1733582911057,5.94773179,4004.0,4003.0,0.3828]
[1733582911362,5.94773179,4004.0,4003.2,0.17467]
[1733582911363,0.17466,4003.6,4003.2,0.17467]
[1733582911561,5.94773179,4004.0,4003.0,0.3828]
[1733582911562,0.89666,4003.5,4003.1,0.17467]
[1733582911759,0.89666,4003.5,4003.0,0.3828]
[1733582911760,0.17467,4003.3,4003.0,0.55748]
[1733582911963,0.17467,4003.2,4003.0,0.3828]
[1733582912258,0.722,4003.5,4002.7,0.17469]
[1733582912459,0.722,4003.5,4002.6,4.0017]